bitfinex/quotes_ETHUSD_20240828
["timestamp","ask_amount","ask_price","bid_price","bid_amount"]
[1724884884253,3.9487,2532.5,2532.2,0.77946]
[1724884885191,6.55044386,2532.9,2532.2,0.55]
[1724884885192,3.94886,2532.4,2532.2,0.55]
[1724884885366,3.94897,2532.3,2532.2,0.55]
[1724884885557,3.94886,2532.4,2532.0,0.55]
[1724884885756,3.94886,2532.4,2532.1,0.67681]
[1724884885986,3.94897,2532.3,2532.2,0.55]
[1724884886379,12.7845,2532.9,2532.0,0.55]
[1724884886585,3.9486,2532.6,2532.0,4.49943]
[1724884886772,3.9486,2532.6,2532.1,0.676803]
[1724884886969,3.94891,2532.4,2532.2,0.55]
[1724884887297,3.94917,2532.2,2531.6,6.36666]
[1724884887492,3.94917,2532.2,2531.7,1.176685]
[1724884887696,3.94929,2532.1,2531.7,1.176685]
[1724884887859,3.94947,2532.0,2531.7,1.176685]
[1724884888060,3.94917,2532.2,2531.7,1.176685]
[1724884888261,3.94917,2532.2,2531.8,0.3593385]
[1724884888262,3.94931,2532.1,2531.8,0.3593385]
[1724884888500,3.94931,2532.1,2531.9,0.55]
[1724884889397,3.94944,2532.0,2531.9,0.55]
[1724884889697,3.95067,2531.3,2530.9,2.3786]
[1724884890002,3.95065,2531.3,2530.9,2.3786]
[1724884890196,3.95065,2531.3,2531.0,0.23786]
[1724884891671,3.95031,2531.5,2531.0,0.23786]
[1724884891871,7.90064,2531.5,2531.0,0.23786]
[1724884892483,3.95031,2531.5,2531.1,0.55]
[1724884893185,3.95047,2531.4,2531.1,0.866646]
[1724884894079,3.9501,2531.6,2531.1,0.866646]
[1724884894726,3.95033,2531.5,2531.1,0.866646]
[1724884894884,3.95046,2531.4,2531.1,0.866646]
[1724884896018,3.95069,2531.2,2531.1,0.866646]
[1724884898929,3.95046,2531.4,2530.6,0.78444961]
[1724884898930,3.951,2531.0,2530.6,0.78444961]
[1724884899218,3.95121,2530.9,2530.5,2.2991]
[1724884899418,3.95121,2530.9,2530.6,0.625099]
[1724884900616,3.95121,2530.9,2530.7,0.55]
[1724884900797,3.95121,2530.9,2530.6,0.55]
[1724884901137,7.90251,2530.9,2530.6,0.55]
[1724884901786,3.95121,2530.9,2530.6,0.55]
[1724884902023,3.95138,2530.8,2530.6,0.55]
[1724884902221,3.95138,2530.8,2530.7,0.28491]
[1724884902423,7.9028,2530.8,2530.7,0.55]
[1724884902627,3.95203,2530.4,2530.2,2.4983]
[1724884902812,3.95203,2530.4,2529.9,6.45092]
[1724884903123,3.95203,2530.4,2530.0,0.8513825]
[1724884903908,3.95203,2530.4,2530.1,0.55]
[1724884904105,3.95203,2530.4,2530.0,0.8513825]
[1724884904106,3.95224,2530.3,2530.0,0.8513825]
[1724884904330,10.42448386,2530.8,2529.9,2.91186497]
[1724884904331,3.95252,2530.1,2529.9,0.41356497]
[1724884904496,3.95236,2530.2,2529.6,2.4983]
[1724884904497,3.95257,2530.0,2529.6,2.4983]
[1724884904701,3.95257,2530.0,2529.7,0.645154]
[1724884905154,3.95236,2530.2,2529.7,0.645154]
[1724884905359,7.90472,2530.2,2529.7,0.645154]
[1724884906016,3.95236,2530.2,2529.8,0.55]
[1724884906359,3.95233,2530.2,2529.8,0.55]
[1724884907029,3.95254,2530.1,2529.8,0.55]
[1724884909835,7.90473,2530.2,2529.8,0.55]
[1724884910037,7.90467,2530.2,2529.8,0.55]
[1724884910248,3.95233,2530.2,2529.8,1.3146624]
[1724884910397,3.95233,2530.2,2529.8,0.55]
[1724884910600,3.95259,2530.0,2529.8,0.55]
[1724884911621,7.90473,2530.2,2529.8,0.55]
[1724884912412,3.95233,2530.2,2529.8,0.55]
[1724884913059,3.95233,2530.2,2529.9,0.5148184]
[1724884913350,3.95246,2530.1,2530.0,0.55]
[1724884913517,3.95246,2530.1,2529.8,0.55]
[1724884914321,3.95261,2530.0,2529.8,0.55]
[1724884914538,3.95246,2530.1,2529.8,0.55]
[1724884914539,3.95272,2529.9,2529.8,0.55]
[1724884915044,3.95272,2529.9,2529.8,0.30483]
[1724884915356,3.95272,2529.9,2529.8,0.85483]
[1724884915855,7.90544,2529.9,2529.8,0.55]
[1724884916266,10.18264,2529.9,2529.8,0.55]
[1724884916427,3.95335,2529.5,2529.1,2.3105]
[1724884916637,3.95335,2529.5,2529.2,0.62646]
[1724884916935,3.9535,2529.4,2528.8,6.67842314]
[1724884917459,3.9535,2529.4,2528.8,2.72413314]
[1724884917460,3.95391,2529.2,2528.8,2.72413314]
[1724884917624,3.95391,2529.2,2528.9,0.66787231]
[1724884918227,3.95367,2529.3,2528.9,0.66787231]
[1724884918634,3.95367,2529.3,2529.0,0.55]
[1724884919039,2.2772,2529.5,2529.0,0.55]
[1724884919244,7.90661,2529.6,2529.1,0.51720323]
[1724884919245,3.9533,2529.6,2529.1,0.51720323]
[1724884919419,3.9533,2529.6,2529.2,0.55]
[1724884920517,3.9533,2529.6,2529.2,2.8337]
[1724884920719,3.95328,2529.6,2529.3,0.73048732]
[1724884921039,3.95328,2529.6,2529.4,0.55]
[1724884921440,3.95328,2529.6,2529.2,0.55]
[1724884921679,3.95342,2529.5,2529.3,0.50211732]
[1724884921827,3.95342,2529.5,2529.4,0.55]
[1724884922025,3.95342,2529.5,2529.2,0.55]
[1724884922221,2.3648,2529.5,2528.6,3.9023]
[1724884922421,2.3648,2529.5,2528.7,0.785712]
[1724884922422,3.95435,2528.9,2528.7,0.785712]
[1724884922622,3.95435,2528.9,2528.3,2.4523]
[1724884922867,3.95454,2528.8,2528.3,2.4523]
[1724884923075,3.95454,2528.8,2528.3,2.86588303]
[1724884923365,3.95462,2528.7,2528.4,0.6821263]
[1724884923564,3.1289225,2528.7,2528.4,0.6821263]
[1724884924651,4.21594386,2528.7,2528.1,2.4253]
[1724884925016,3.95522,2528.4,2527.8,6.38122]
[1724884925136,3.95522,2528.4,2527.9,1.033728]
[1724884925632,3.95524,2528.3,2527.9,1.033728]
[1724884926070,3.95524,2528.3,2527.7,3.95606]
[1724884926935,3.95556,2528.1,2527.5,6.24018]
[1724884927466,3.95633,2527.6,2527.1,2.3565]
[1724884927690,8.17199386,2527.8,2527.2,1.372371]
[1724884927835,3.95605,2527.8,2527.1,10.27052]
[1724884928175,2.3937,2528.6,2527.6,6.31277]
[1724884928491,3.95578,2528.0,2527.6,2.3565]
[1724884928640,3.95578,2528.0,2527.2,6.29969]
[1724884928841,3.95586,2527.9,2527.3,0.67127139]
[1724884929575,3.95578,2528.0,2527.1,1.03242535]
[1724884929576,3.95629,2527.7,2527.1,1.03242535]
[1724884929890,3.95659,2527.5,2526.8,3.95747]
[1724884930133,3.95659,2527.5,2526.9,0.69658494]
[1724884930134,3.95658,2527.5,2526.9,0.69658494]
[1724884930266,7.91317,2527.5,2526.9,0.69658494]
[1724884930455,3.95658,2527.5,2526.9,0.69658494]
[1724884930654,3.95675,2527.4,2526.9,0.69658494]
[1724884930850,3.95658,2527.5,2527.0,0.46540549]
[1724884931052,9.58164386,2527.8,2526.7,1.45]
[1724884931285,4.21594386,2526.8,2526.6,0.41308338]
[1724884931483,4.21594386,2526.8,2525.6,3.95934]
[1724884931484,3.95836,2526.3,2525.6,3.95934]
[1724884931656,2.4557,2526.7,2525.6,3.95934]
[1724884931657,3.95832,2526.4,2525.6,3.95934]
[1724884931855,3.95832,2526.4,2525.9,0.41314894]
[1724884932060,3.95866,2526.2,2525.9,0.41314894]
[1724884932372,3.95866,2526.2,2525.5,2.4376]
[1724884932373,3.95836,2526.3,2525.6,3.95942]
[1724884932545,3.95836,2526.3,2525.7,0.639702]
[1724884932979,3.95853,2526.2,2525.7,0.639702]
[1724884933187,4.21594386,2526.5,2525.2,0.61975288]
[1724884933385,3.95944,2525.7,2525.1,0.61975288]
[1724884933681,3.95916,2525.8,2524.7,1.45]
[1724884933682,3.96013,2525.2,2524.7,1.45]
[1724884933840,3.96013,2525.2,2524.3,2.4537]
[1724884933841,3.96055,2524.9,2524.3,2.4537]
[1724884934043,3.96055,2524.9,2524.2,3.96161]
[1724884934266,3.96089,2524.7,2523.9,3.96201]
[1724884934453,3.96089,2524.7,2523.9,4.20738]
[1724884934857,3.96045,2525.0,2524.2,3.96159]
[1724884935169,6.9601,2525.2,2524.3,2.4438]
[1724884935488,6.9601,2525.2,2524.4,0.07922111]
[1724884935489,3.0,2525.2,2524.4,0.07922111]
[1724884935781,3.0,2525.2,2524.6,3.96089]
[1724884935967,3.0,2525.2,2524.7,0.396089]
[1724884936283,6.9601,2525.2,2524.7,0.06120802]
[1724884936444,6.9601,2525.2,2524.8,0.55]
[1724884936649,6.9601,2525.2,2524.9,0.06077399]
[1724884936954,3.0,2525.2,2525.0,0.55]
[1724884937140,3.0,2525.2,2525.0,0.61055699]
[1724884937956,3.95946,2525.6,2525.0,0.61055699]
[1724884938276,3.95946,2525.6,2525.1,0.4570967]
[1724884938479,5.3516,2525.7,2525.2,0.55]
[1724884938779,3.0,2525.7,2525.2,0.6099611]
[1724884938979,3.95972,2525.5,2525.2,0.6099611]
[1724884939368,3.9596,2525.6,2525.2,0.6099611]
[1724884939768,3.0,2525.7,2525.2,1.06699221]
[1724884939975,8.08081447,2526.1,2525.6,3.95943]
[1724884939976,2.4299,2526.1,2525.6,3.95943]
[1724884940158,2.4299,2526.1,2525.7,0.945943]
[1724884940345,2.4299,2526.1,2525.7,1.01219315]
[1724884941168,6.38857,2526.1,2525.7,1.01219315]
[1724884941378,6.38857,2526.1,2525.7,0.61625015]
[1724884941585,10.91828,2525.8,2525.7,0.06625015]
[1724884941785,17.14272,2525.8,2525.7,0.06625015]
[1724884942209,3.95994,2525.3,2524.7,3.96086]
[1724884942356,3.95994,2525.3,2524.8,0.396086]
[1724884942752,3.9601,2525.2,2524.8,0.396086]
[1724884942969,3.95994,2525.3,2524.7,3.96071]
[1724884943264,6.95966,2525.5,2524.8,3.96069]
[1724884943462,10.9194,2525.5,2524.8,3.96069]
[1724884943662,6.95966,2525.5,2524.8,3.96069]
[1724884943992,6.95966,2525.5,2524.9,0.79214]
[1724884944193,10.9194,2525.5,2524.9,0.79214]
[1724884944848,6.95966,2525.5,2525.0,0.55]
[1724884945277,3.95906,2525.9,2525.0,0.55]
[1724884945467,3.9593,2525.7,2525.2,3.95994]
[1724884945664,3.9593,2525.7,2525.3,0.945994]
[1724884946091,3.95906,2525.9,2525.3,0.945994]
[1724884946259,3.95906,2525.9,2525.3,4.905814]
[1724884946458,3.95906,2525.9,2525.3,0.945994]
[1724884946459,7.91817,2525.9,2525.3,0.945994]
[1724884946656,3.95906,2525.9,2525.4,0.4905934]
[1724884946859,2.4407,2526.1,2525.6,3.95931]
[1724884947174,3.95844,2526.3,2525.7,0.61625015]
[1724884947967,3.95844,2526.3,2525.7,4.50929]
[1724884948154,3.95863,2526.2,2525.8,0.91286619]
[1724884948356,3.9586,2526.2,2525.9,0.55]
[1724884948658,9.9118,2526.5,2526.0,0.06551832]
[1724884948902,7.9172,2526.2,2525.9,0.55]
[1724884949108,3.95857,2526.2,2525.9,0.55]
[1724884949273,3.95857,2526.2,2526.0,0.06553939]
[1724884949474,3.95825,2526.4,2526.0,0.06553939]
[1724884949674,3.0,2526.3,2525.9,0.55]
[1724884950337,7.45,2526.5,2525.9,4.02472331]
[1724884950478,7.45,2526.5,2526.0,0.55]
[1724884950671,11.40808,2526.5,2526.1,0.53209574]
[1724884950879,7.45,2526.5,2526.2,0.55]
[1724884951080,7.91598,2526.6,2526.3,0.07406598]
[1724884951421,3.95795,2526.6,2526.3,0.07406598]
[1724884951920,3.95795,2526.6,2526.2,0.55]
[1724884952123,3.95806,2526.5,2526.2,0.55]
[1724884952434,3.95795,2526.6,2526.3,0.07406598]
[1724884952580,3.9582,2526.4,2526.3,0.07406598]
[1724884952821,3.95835,2526.3,2526.2,0.55]
[1724884953059,3.95835,2526.3,2526.2,0.62434468]
[1724884953529,3.95821,2526.4,2526.2,0.62434468]
[1724884954259,3.95821,2526.4,2526.2,0.55]
[1724884954462,7.91625,2526.5,2526.2,0.55]
[1724884954754,7.91625,2526.5,2526.0,0.55]
[1724884954958,3.95806,2526.5,2526.0,4.904685]
[1724884955158,3.95806,2526.5,2526.1,0.06529548]
[1724884955458,3.95806,2526.5,2526.2,0.55]
[1724884955659,3.95806,2526.5,2526.3,0.07406598]
[1724884956018,7.45,2526.8,2526.4,0.55]
[1724884956218,11.40766,2526.8,2526.4,0.55]
[1724884956457,3.95775,2526.7,2526.4,0.55]
[1724884956649,3.95775,2526.7,2526.2,0.55]
[1724884956851,3.95775,2526.7,2526.3,0.08641031]
[1724884957054,3.95775,2526.7,2526.4,0.55]
[1724884957321,7.45,2526.8,2526.4,0.55]
[1724884957847,7.45,2526.8,2526.4,4.50818]
[1724884958026,7.45,2526.8,2526.5,1.242471]
[1724884958224,7.45,2526.8,2526.6,0.55]
[1724884958833,11.40757,2526.8,2526.6,0.55]
[1724884959374,11.40757,2526.8,2526.5,1.16984842]
[1724884959525,11.40757,2526.8,2526.6,0.61984842]
[1724884960036,11.40757,2526.8,2526.5,0.55]
[1724884960260,11.40757,2526.8,2526.6,0.61972227]
[1724884960461,3.95757,2526.8,2526.4,0.55]
[1724884960677,3.95757,2526.8,2526.5,0.61973999]
[1724884960846,3.95773,2526.7,2526.6,1.16973999]
[1724884961566,3.95773,2526.7,2526.6,0.55]
[1724884961757,3.95773,2526.7,2526.6,1.16973339]
[1724884963570,3.9582,2526.4,2526.3,0.61973339]
[1724884964676,2.2637,2526.7,2526.3,0.61973339]
[1724884964677,3.95782,2526.7,2526.3,0.61973339]
[1724884964878,3.95782,2526.7,2526.4,0.61973339]
[1724884965203,3.95782,2526.7,2526.5,1.16973339]
[1724884965204,7.91567,2526.7,2526.5,1.16973339]
[1724884965390,7.91567,2526.7,2526.6,0.61973339]
[1724884965569,3.95748,2526.9,2526.6,1.16973339]
[1724884965768,3.95759,2526.8,2526.7,0.61973339]
[1724884966197,7.91504,2526.9,2526.7,0.61973339]
[1724884966392,3.95773,2526.7,2526.5,0.55]
[1724884966597,3.95773,2526.7,2526.6,0.61971696]
[1724884966867,3.95773,2526.7,2526.6,1.16971696]
[1724884968996,3.0,2527.0,2526.6,1.16971696]
[1724884969210,3.0,2527.0,2526.7,1.16971696]
[1724884969417,3.0,2527.0,2526.8,0.61971696]
[1724884969622,3.0,2527.0,2526.9,0.61971696]
[1724884970070,7.91384,2527.3,2526.9,0.61971696]
[1724884970268,7.91379,2527.3,2527.0,1.16964278]
[1724884970474,3.95689,2527.3,2527.1,1.16964278]
[1724884970671,3.95689,2527.3,2527.2,0.61964278]
[1724884970911,3.95689,2527.3,2527.1,0.55]
[1724884971067,3.95689,2527.3,2527.2,0.61957123]
[1724884971292,3.9566,2527.5,2527.2,1.16957035]
[1724884971523,3.95672,2527.4,2527.1,0.55]
[1724884971683,3.95672,2527.4,2527.2,0.61954702]
[1724884972016,3.95672,2527.4,2527.0,0.55]
[1724884972323,3.95672,2527.4,2527.1,1.07031044]
[1724884972486,3.95672,2527.4,2527.2,1.16957144]
[1724884972914,3.95672,2527.4,2527.2,1.16957756]
[1724884973128,3.95672,2527.4,2527.2,0.55]
[1724884973586,12.907,2527.7,2527.2,0.55]
[1724884973587,14.40625,2527.7,2527.2,0.55]
[1724884973784,11.40586,2527.9,2527.3,1.11531658]
[1724884973986,11.40586,2527.9,2527.4,1.16954068]
[1724884974209,15.36182,2527.9,2527.5,0.61954068]
[1724884974410,15.36182,2527.9,2527.6,1.16954068]
[1724884974625,3.95572,2528.0,2527.6,0.55]
[1724884974820,3.95563,2528.1,2527.7,0.6194417]
[1724884974983,3.95563,2528.1,2527.8,1.16943026]
[1724884975188,3.95563,2528.1,2527.8,0.55]
[1724884975488,7.91125,2528.1,2527.6,1.16941981]
[1724884975717,3.95586,2527.9,2527.7,0.61941981]
[1724884975905,3.95586,2527.9,2527.6,1.00186597]
[1724884975906,3.95616,2527.7,2527.6,1.16948432]
[1724884976107,3.95616,2527.7,2527.6,0.55]
[1724884976527,3.95616,2527.7,2527.4,1.16948432]
[1724884976696,3.95616,2527.7,2527.5,0.61948432]
[1724884976902,3.95616,2527.7,2527.6,1.16948432]
[1724884977098,3.95616,2527.7,2527.6,0.55]
[1724884977694,3.95633,2527.6,2527.4,1.16948432]
[1724884977900,3.95601,2527.8,2527.5,0.61948432]
[1724884978237,3.95618,2527.7,2527.6,0.55]
[1724884978590,3.9564,2527.6,2527.4,1.16948432]
[1724884978822,3.9564,2527.6,2527.4,0.55]
[1724884978990,3.9564,2527.6,2527.4,1.16948432]
[1724884979192,3.95647,2527.5,2527.4,1.16948432]
[1724884979392,3.95647,2527.5,2527.4,0.55]
[1724884979846,7.91294,2527.5,2527.4,0.55]
[1724884980135,6.45556,2527.8,2526.7,3.0]
[1724884980136,3.95694,2527.2,2526.7,6.23241]
[1724884980438,3.95694,2527.2,2526.8,0.623241]
[1724884980840,3.95727,2527.0,2526.8,0.623241]
[1724884980997,3.95727,2527.0,2526.7,2.2747]
[1724884981190,3.95743,2526.9,2526.7,2.2747]
[1724884981391,3.95769,2526.8,2526.4,2.4709]
[1724884981644,3.95742,2526.9,2526.4,2.4709]
[1724884981944,3.95742,2526.9,2526.5,1.03874]
[1724884982307,3.95736,2527.0,2526.5,1.03874]
[1724884982560,3.95698,2527.2,2526.5,1.03874]
[1724884982561,3.95714,2527.1,2526.5,4.99677]
[1724884982829,3.95714,2527.1,2526.5,4.99669]
[1724884983038,3.95727,2527.0,2526.5,4.99669]
[1724884983328,3.95727,2527.0,2526.6,0.746759]
[1724884983634,7.91462,2527.0,2526.7,0.55]
[1724884983808,3.95746,2526.9,2526.7,0.55]
[1724884984007,3.95767,2526.8,2526.6,0.746759]
[1724884984317,3.95775,2526.7,2526.4,2.4709]
[1724884984520,3.95775,2526.7,2525.5,2.0630913]
[1724884984521,3.95806,2526.5,2526.1,2.3147]
[1724884984732,8.11651447,2527.2,2526.1,2.3147]
[1724884984733,3.9582,2526.4,2526.2,0.23147]
[1724884985038,3.9582,2526.4,2526.1,2.3147]
[1724884985594,7.91653,2526.4,2526.1,2.3147]
[1724884986299,3.9582,2526.4,2526.1,2.3147]
[1724884986697,3.9582,2526.4,2526.2,0.55]
[1724884987299,3.95835,2526.3,2526.2,0.55]
[1724884989436,7.9167,2526.3,2526.2,0.55]
[1724884989637,3.95878,2526.1,2525.8,2.3608]
[1724884989828,3.95878,2526.1,2525.9,0.23608]
[1724884990140,3.95882,2526.0,2525.9,0.23608]
[1724884990340,3.95878,2526.1,2525.9,0.23608]
[1724884990835,3.95877,2526.1,2526.0,0.55]
[1724884991740,6.95733,2527.0,2526.0,0.864688]
[1724884991912,3.95799,2526.6,2526.0,4.823418]
[1724884992117,3.95817,2526.5,2526.0,0.864688]
[1724884994041,3.9586,2526.2,2526.0,0.29108]
[1724884994342,7.91719,2526.2,2526.1,0.55]
[1724884994638,6.43831,2526.6,2525.9,0.55]
[1724884994639,3.95882,2526.0,2525.9,0.55]
[1724884996618,3.95896,2526.0,2525.4,3.95964]
[1724884996959,3.95814,2526.5,2526.0,2.3176]
[1724884997303,3.9579,2526.6,2526.1,3.95863]
[1724884997507,3.9579,2526.6,2526.2,0.63554012]
[1724884998020,3.95753,2526.9,2526.3,0.55]
[1724884998205,3.95785,2526.7,2526.4,2.3012]
[1724884998402,7.91576,2526.6,2526.5,0.83512]
[1724884998658,7.91576,2526.6,2526.5,0.55]
[1724885001613,3.0,2527.0,2526.5,0.55]
[1724885001614,3.9573,2527.0,2526.5,0.55]
[1724885001850,3.9576,2526.8,2526.5,0.55]
[1724885002306,3.95785,2526.7,2526.5,0.55]
[1724885002507,3.95785,2526.7,2526.6,0.2972]
[1724885002508,7.91566,2526.7,2526.6,0.2972]
[1724885002809,7.91546,2526.7,2526.6,0.55]
[1724885003511,3.95879,2526.1,2525.8,2.4413]
[1724885003846,3.95879,2526.1,2525.5,7.4464567]
[1724885003847,7.91756,2526.1,2525.5,6.4008]
[1724885004430,3.95909,2525.9,2525.5,2.4413]
[1724885004764,3.95916,2525.8,2525.5,4.06230684]
[1724885004911,3.95938,2525.7,2525.5,4.06230684]
[1724885005105,3.95938,2525.7,2525.5,2.4413]
[1724885005886,7.9182,2525.9,2525.5,2.4413]
[1724885006497,3.95917,2525.8,2525.5,2.4413]
[1724885006648,3.95917,2525.8,2525.5,3.081419]
[1724885007252,3.95908,2525.9,2525.5,3.081419]
[1724885007761,3.95832,2526.4,2525.8,3.95906]
[1724885008097,3.95852,2526.2,2525.9,0.55]
[1724885008255,3.9583,2526.4,2525.8,0.55]
[1724885008455,3.9583,2526.4,2525.8,4.50905]
[1724885008456,7.91665,2526.4,2525.8,4.50905]
[1724885008685,3.95804,2526.5,2526.0,2.4224]
[1724885008956,7.45,2526.7,2526.2,3.95851]
[1724885009184,7.45,2526.9,2526.3,1.000851]
[1724885009706,7.45,2526.9,2526.3,4.959121]
[1724885009850,3.95767,2526.8,2526.3,4.959181]
[1724885010055,3.95767,2526.8,2526.4,0.8917581]
[1724885010251,7.45,2526.9,2526.6,2.463]
[1724885010480,3.95735,2527.0,2526.7,0.55]
[1724885010690,3.95735,2527.0,2526.7,1.247095]
[1724885011270,3.95713,2527.1,2526.7,1.247095]
[1724885011469,3.95726,2527.0,2526.7,1.247095]
[1724885011664,23.74705,2527.2,2526.7,0.55]
[1724885011865,3.95719,2527.1,2526.7,0.55]
[1724885012877,23.74705,2527.2,2526.7,0.55]
[1724885012878,3.9573,2527.0,2526.7,0.55]
[1724885014194,7.91467,2527.0,2526.7,0.55]
[1724885014398,3.95743,2526.9,2526.7,0.55]
[1724885014583,3.95743,2526.9,2526.5,0.55]
[1724885014762,3.95743,2526.9,2526.5,1.36834991]
[1724885015687,3.9573,2527.0,2526.5,1.36834991]
[1724885016002,3.9573,2527.0,2526.5,5.32636991]
[1724885016215,3.95714,2527.1,2526.6,3.95787]
[1724885016535,11.40702,2527.2,2526.7,7.45773199]
[1724885017113,11.40702,2527.2,2526.8,3.95756]
[1724885017276,3.95702,2527.2,2526.9,0.55]
[1724885017459,3.95702,2527.2,2526.9,1.3507582]
[1724885017669,3.95667,2527.4,2526.9,1.3507582]
[1724885017670,3.95681,2527.3,2526.9,1.3507582]
[1724885018275,10.45,2527.5,2526.9,1.3507582]
[1724885018488,7.45,2527.5,2527.1,6.39554]
[1724885018796,7.45,2527.5,2527.2,0.55]
[1724885018975,7.45,2527.5,2527.3,3.95677]
[1724885019176,7.45,2527.5,2527.4,0.55]
[1724885019509,3.95617,2527.7,2527.4,0.55]
[1724885020866,3.95647,2527.5,2527.4,0.55]
[1724885021076,3.95671,2527.4,2527.2,0.55]
[1724885021276,3.95647,2527.5,2527.2,0.55]
[1724885021474,3.95647,2527.5,2527.0,4.50725]
[1724885021475,7.91308,2527.5,2527.0,4.50725]
[1724885021705,3.95647,2527.5,2527.1,0.846451]
[1724885021910,7.91304,2527.5,2527.2,0.55]
[1724885022199,3.95647,2527.5,2527.2,0.55]
[1724885024094,3.95671,2527.4,2527.2,0.55]
[1724885024246,3.95671,2527.4,2526.5,2.3739]
[1724885024247,3.9571,2527.1,2526.5,2.3739]
[1724885024775,7.45,2527.3,2526.5,2.3739]
[1724885024776,11.40687,2527.3,2526.7,3.95761]
[1724885024903,15.36375,2527.3,2526.8,0.395761]
[1724885025219,11.40687,2527.3,2526.8,0.395761]
[1724885025420,11.40687,2527.3,2526.9,0.55]
[1724885025598,7.45,2527.3,2526.9,8.46471]
[1724885025946,7.45,2527.3,2527.0,7.3377071]
[1724885026150,7.45,2527.3,2527.1,0.55]
[1724885026446,3.95655,2527.5,2527.1,0.55]
[1724885026601,3.9568,2527.3,2527.1,0.55]
[1724885026804,12.34,2527.6,2527.1,0.55]
[1724885027302,3.95687,2527.3,2527.1,0.55]
[1724885028315,3.95684,2527.3,2527.1,0.55]
[1724885028709,3.95651,2527.5,2527.1,0.55]
[1724885029048,20.25286,2527.6,2527.1,2.9382]
[1724885029219,20.25286,2527.6,2527.2,0.77814271]
[1724885029405,20.25286,2527.6,2527.3,0.55]
[1724885029606,3.95649,2527.5,2527.3,0.55]
[1724885029806,3.95663,2527.4,2527.3,0.55]
[1724885030220,3.95663,2527.4,2527.2,0.55]
[1724885030948,3.95679,2527.3,2527.2,0.55]
[1724885031107,3.95659,2527.5,2527.2,0.55]
[1724885031447,3.95663,2527.4,2527.2,0.55]
[1724885032667,7.91358,2527.3,2527.2,0.55]
[1724885033718,3.95744,2526.9,2526.6,2.3882]
[1724885033920,3.95774,2526.7,2526.3,2.3882]
[1724885034115,3.95774,2526.7,2526.4,0.63466]
[1724885035553,3.95799,2526.6,2526.5,0.55]
[1724885035868,3.95818,2526.5,2526.0,6.29151]
[1724885036170,3.95818,2526.5,2526.1,0.629151]
[1724885036369,3.95799,2526.6,2526.1,0.629151]
[1724885036370,3.9582,2526.4,2526.1,0.629151]
[1724885036587,7.91599,2526.6,2526.0,6.29149]
[1724885037045,7.91599,2526.6,2526.1,0.55]
[1724885037764,3.95799,2526.6,2526.1,0.55]
[1724885038084,7.45,2526.8,2526.5,2.4628]
[1724885038402,7.45,2526.8,2526.6,0.55]
[1724885038748,7.45,2526.8,2526.7,3.95773]
[1724885038997,7.45,2526.8,2526.7,4.50773]
[1724885039200,3.95703,2527.2,2526.7,5.60847167]
[1724885039361,3.95703,2527.2,2526.8,0.55]
[1724885039994,3.95703,2527.2,2526.8,4.50757]
[1724885040180,3.95703,2527.2,2526.9,0.6196065]
[1724885040380,3.95703,2527.2,2527.0,1.1696065]
[1724885040567,3.95703,2527.2,2526.8,0.55]
[1724885040780,3.95703,2527.2,2526.9,0.56083517]
[1724885040997,7.45,2527.5,2527.0,0.55]
[1724885041303,3.95671,2527.4,2527.0,2.8327]
[1724885041487,3.95671,2527.4,2527.1,0.73508652]
[1724885041674,3.95671,2527.4,2527.2,0.55]
[1724885041877,11.40649,2527.5,2527.0,6.78994]
[1724885042071,11.40649,2527.5,2527.0,2.8327]
[1724885042072,7.45,2527.5,2527.0,2.8327]
[1724885042287,7.45,2527.5,2527.1,4.69209152]
[1724885042611,7.45,2527.5,2527.2,0.55]
[1724885043100,11.40656,2527.5,2527.2,0.55]
[1724885044375,3.95664,2527.4,2527.2,0.55]
[1724885044969,3.95664,2527.4,2527.1,0.55]
[1724885045165,7.45,2527.5,2527.1,4.50697]
[1724885046788,3.95612,2527.8,2527.1,4.50697]
[1724885046789,3.95612,2527.8,2527.3,3.95671]
[1724885046989,3.0,2527.7,2527.4,0.945671]
[1724885047521,7.45,2527.9,2527.5,6.23846]
[1724885047678,7.45,2527.9,2527.6,0.55]
[1724885048224,7.45,2527.9,2527.6,4.50622]
[1724885048526,7.45,2527.9,2527.7,1.074462]
[1724885048820,7.45,2527.9,2527.8,0.55]
[1724885052727,7.91122,2528.1,2527.8,0.55]
[1724885052914,3.95574,2528.0,2527.8,0.55]
[1724885054638,3.95585,2527.9,2527.8,0.55]
[1724885055711,3.95569,2528.0,2527.8,0.55]
[1724885056028,3.95601,2527.8,2527.6,0.55]
[1724885056325,3.95651,2527.5,2527.2,0.37163557]
[1724885056863,3.95632,2527.6,2527.2,0.37163557]
[1724885057133,3.95632,2527.6,2527.2,1.04712513]
[1724885057589,3.95632,2527.6,2527.3,0.55]
[1724885058131,3.95651,2527.5,2527.3,0.55]
[1724885058290,3.95647,2527.5,2527.3,0.55]
[1724885060529,3.95663,2527.4,2527.3,0.55]
[1724885061227,7.91326,2527.4,2527.3,0.55]
[1724885062938,3.95739,2527.0,2526.5,0.82579516]
[1724885063135,5.377439,2527.4,2526.5,0.82579516]
[1724885063136,2.3385,2527.1,2526.5,1.37721868]
[1724885063451,3.95743,2526.9,2526.4,2.4261]